bitfinex-derivatives/quotes_ETHF0:USTF0_20260102
["timestamp","ask_amount","ask_price","bid_price","bid_amount"]
[1767339208958,0.0049604,3022.9,3022.1,0.90859392]
[1767339209153,0.0049604,3022.9,3022.3,0.90859392]
[1767339209458,0.16872005,3023.2,3022.4,0.14333558]
[1767339210256,0.0049604,3023.1,3022.4,0.14333558]
[1767339211254,8.3,3023.9,3022.6,0.14333558]
[1767339211459,0.16557,3024.0,3022.7,0.90859392]
[1767339211653,0.16557,3024.0,3022.9,0.76525834]
[1767339212262,0.0049604,3023.8,3023.1,0.0049604]
[1767339212654,0.0049604,3023.8,3023.1,0.91355432]
[1767339212854,0.0049604,3023.8,3023.2,0.14333558]
[1767339213158,0.0049604,3023.8,3023.1,0.0049604]
[1767339213348,0.77021874,3023.8,3023.1,0.0049604]
[1767339213859,0.0049604,3023.8,3023.1,0.0049604]
[1767339220963,0.77021874,3023.8,3023.1,0.0049604]
[1767339221465,0.77021874,3023.8,3022.2,0.14333558]
[1767339221466,0.76525834,3023.4,3022.2,0.14333558]
[1767339222271,0.76525834,3023.4,3022.5,0.0049604]
[1767339223167,0.33198,3023.7,3022.5,0.0049604]
[1767339223570,0.33198,3023.7,3022.5,0.14829598]
[1767339233278,0.33198,3023.7,3022.5,0.91355432]
[1767339235082,0.33198,3023.7,3022.6,0.14333558]
[1767339235877,0.33198,3023.7,3022.9,0.13574687]
[1767339238486,0.1664,3023.7,3022.9,0.13574687]
[1767339239686,0.1664,3023.7,3022.5,0.0049604]
[1767339239687,0.1664,3023.7,3023.2,0.13574687]
[1767339241686,0.0042835,3024.0,3023.4,0.76525834]
[1767339241889,0.0042835,3024.0,3023.4,0.76828128]
[1767339242386,0.0042835,3024.0,3023.4,0.00302294]
[1767339242585,0.0092439,3024.0,3023.4,0.00302294]
[1767339245292,0.1644,3023.9,3023.4,0.00302294]
[1767339245789,0.1644,3023.9,3023.4,0.13876981]
[1767339245988,0.0092439,3024.0,3023.4,0.00302294]
[1767339247994,0.0092439,3024.0,3023.4,0.90402815]
[1767339248184,0.0092439,3024.0,3023.5,0.13574687]
[1767339248490,0.0092439,3024.0,3023.4,0.00302294]
[1767339252597,0.0092439,3024.0,3022.6,0.76525834]
[1767339252895,0.0092439,3024.0,3022.6,0.90100521]
[1767339253596,0.0092439,3024.0,3022.6,0.90343375]
[1767339256498,0.0092439,3024.0,3022.6,0.13817541]
[1767339257393,0.15564986,3024.0,3022.6,0.00242854]
[1767339258608,0.16557,3023.9,3022.6,0.00242854]
[1767339260400,0.31197596,3023.9,3022.6,0.00242854]
[1767339261400,0.14640596,3023.7,3022.6,0.00242854]
[1767339266396,0.16558,3023.8,3022.6,0.00242854]
[1767339282809,0.16558,3023.7,3022.6,0.00242854]
[1767339291817,0.31029675,3023.7,3022.6,0.00242854]
[1767339293917,0.31031675,3023.5,3022.6,0.00242854]
[1767339294217,0.14471675,3023.5,3022.5,0.0049604]
[1767339294415,0.14471675,3023.5,3021.8,0.14570422]
[1767339295020,0.14471675,3023.5,3021.8,0.14924673]
[1767339295419,0.14471675,3023.5,3022.3,0.0049604]
[1767339295612,0.16561,3023.3,3022.3,0.0049604]
[1767339300418,0.16561,3023.2,3022.3,0.0049604]
[1767339300621,0.16562,3023.0,3021.8,0.14924673]
[1767339301726,0.16562,3023.0,3022.1,0.0049604]
[1767339304425,0.16562,3023.0,3022.1,0.13942803]
[1767339315042,0.1812,3022.9,3022.1,0.13942803]
[1767339325251,0.1812,3022.9,3022.1,0.0049604]
[1767339327140,0.16565,3022.6,3021.8,0.00354251]
[1767339328047,0.16565,3022.6,3021.9,0.00330692]
[1767339332050,0.1812,3022.5,3021.9,0.00330692]
[1767339332546,0.1812,3022.5,3021.8,0.00354251]
[1767339332751,0.94667091,3022.5,3021.8,0.00354251]
[1767339333554,0.95163131,3022.5,3021.8,0.00354251]
[1767339337755,0.1861604,3022.5,3021.8,0.00354251]
[1767339344861,0.1861604,3022.5,3021.3,0.13917334]
[1767339345052,0.0049604,3022.5,3021.3,0.13917334]
[1767339345254,0.0049604,3022.5,3021.3,0.90464425]
[1767339345758,0.0049604,3022.5,3021.3,0.90769223]
[1767339346060,0.0049604,3022.5,3021.4,0.13917334]
[1767339348163,0.1813,3022.4,3021.4,0.13917334]
[1767339354776,0.94677091,3022.4,3021.4,0.13917334]
[1767339357677,0.1813,3022.4,3021.4,0.13917334]
[1767339357972,0.94677091,3022.4,3021.4,0.13917334]
[1767339360279,0.76547091,3022.4,3021.4,0.13917334]
[1767339360478,0.0049604,3022.5,3021.4,0.13917334]
[1767339360679,0.76547091,3022.4,3021.4,0.13917334]
[1767339363277,0.1813,3022.3,3021.4,0.13917334]
[1767339370875,0.76547091,3022.2,3021.3,0.00304798]
[1767339371475,0.16569,3021.7,3020.5,0.13519662]
[1767339371676,0.16569,3021.7,3019.0,0.16584]
[1767339371677,0.0049604,3021.4,3020.8,0.13519662]
[1767339371875,0.76547091,3022.0,3020.8,0.13519662]
[1767339372073,0.1813,3022.3,3021.2,0.13519662]
[1767339372483,0.94937112,3022.3,3021.2,0.13831261]
[1767339372986,0.0049604,3022.1,3021.4,0.0049604]
[1767339374680,0.0049604,3022.1,3021.4,0.14015702]
[1767339378085,0.77043131,3022.1,3021.4,0.0049604]
[1767339378488,0.0049604,3022.1,3021.4,0.0049604]
[1767339390188,0.3309,3022.0,3021.4,0.0049604]
[1767339391190,0.3309,3022.0,3021.2,0.00311599]
[1767339392989,0.49658,3022.0,3021.2,0.00311599]
[1767339393290,0.49658,3022.0,3020.6,0.12832323]
[1767339393693,0.16568,3021.9,3020.6,0.12832323]
[1767339394191,0.16568,3021.9,3020.6,0.1326221]
[1767339400902,0.3309,3022.0,3020.6,0.1326221]
[1767339403406,0.16571,3021.5,3020.6,0.00429887]
[1767339404305,0.16571,3021.5,3020.6,0.1326221]
[1767339410010,0.93170313,3021.4,3019.5,0.29502338]
[1767339410211,0.93170313,3021.4,3019.3,4.86130846]
[1767339410611,0.93170313,3021.4,3019.4,4.36540334]
[1767339410813,0.93170313,3021.4,3019.4,4.36866805]
[1767339411507,0.93170313,3021.4,3019.4,4.65502336]
[1767339411812,0.93170313,3021.4,3019.5,0.12589987]
[1767339412013,0.16571,3021.4,3019.5,0.12589987]
[1767339412217,0.93170313,3021.4,3019.5,0.12589987]
[1767339412716,0.16572,3021.3,3019.5,0.12589987]
[1767339413209,0.3309,3021.2,3019.5,0.12589987]
[1767339419523,0.3309,3021.2,3019.7,0.13436481]
[1767339422626,0.3309,3021.2,3019.5,4.32111964]
[1767339422627,0.3309,3021.2,3019.9,0.13436481]
[1767339426529,0.03667228,3021.2,3020.3,0.13436481]
[1767339426729,0.16568,3021.9,3020.4,4.744]
[1767339426918,0.30621092,3021.9,3020.4,4.744]
[1767339429235,0.1814,3021.8,3020.4,4.744]
[1767339430529,0.1814,3021.8,3020.4,4.87324353]
[1767339431030,0.1814,3021.8,3020.5,0.12934987]
[1767339431225,0.1814,3021.8,3020.6,0.76599313]
[1767339431841,0.1814,3021.8,3020.5,0.12934987]
[1767339433433,0.14053092,3021.7,3020.6,4.743]
[1767339433631,0.14053092,3021.7,3020.7,4.743]
[1767339435536,0.1814,3021.8,3020.7,4.743]
[1767339440537,0.1814,3021.8,3020.8,0.76597761]
[1767339442435,0.1814,3021.8,3021.0,0.76597761]
[1767339444936,0.1814,3021.8,3020.8,0.76597761]
[1767339447135,0.1814,3021.8,3020.9,4.747]
[1767339451243,0.1814,3021.8,3020.9,5.51297761]
[1767339458941,0.1814,3021.8,3020.9,4.747]
[1767339459241,0.14549132,3022.1,3020.9,4.747]
[1767339459536,0.14334127,3021.9,3020.5,2.23152598]
[1767339459745,0.14334127,3021.9,3020.6,4.76]
[1767339461945,0.14334127,3021.9,3020.5,0.76597761]
[1767339462145,0.14334127,3021.9,3020.6,4.761]
[1767339462942,0.1814,3021.8,3020.6,4.761]
[1767339463143,0.1814,3021.8,3020.5,0.76597761]
[1767339463444,0.1814,3021.8,3020.6,4.763]
[1767339472259,0.1814,3021.8,3020.5,0.89623069]
[1767339472448,0.1814,3021.8,3020.6,4.762]
[1767339474256,0.1814,3021.8,3020.7,0.76597761]
[1767339480961,0.76597761,3021.5,3020.1,0.14202456]
[1767339481258,0.14231022,3021.7,3020.4,0.76597761]
[1767339483260,0.14231022,3021.7,3020.6,0.76597761]
[1767339485761,0.14231022,3021.7,3020.4,0.76597761]
[1767339485961,0.76597761,3021.6,3020.4,0.76597761]
[1767339486162,0.90828783,3021.6,3020.5,4.76]
[1767339486951,0.14231022,3021.3,3019.8,1.5773709]
[1767339487155,0.14231022,3021.3,3020.0,0.76597761]
[1767339488762,0.14231022,3021.3,3020.1,4.761]
[1767339491366,0.76597761,3021.2,3020.2,4.765]
[1767339491958,0.76597761,3021.2,3019.8,2.33194737]
[1767339492165,0.76597761,3021.2,3019.9,4.765]
[1767339492354,0.90828783,3021.2,3019.9,4.765]
[1767339492754,0.90828783,3021.2,3019.8,1.45866318]
[1767339492960,0.14231022,3021.1,3019.9,4.765]
[1767339493466,0.76597761,3021.0,3020.0,4.765]
[1767339494665,0.14231022,3021.1,3020.0,4.765]
[1767339494968,0.1815,3021.0,3020.0,4.765]
[1767339495268,0.1815,3021.0,3020.1,4.766]
[1767339496061,0.1815,3021.0,3020.1,5.53197761]
[1767339497072,0.1815,3021.0,3020.2,4.766]
[1767339501277,0.1815,3021.0,3019.7,0.76597761]
[1767339501475,0.1815,3021.0,3019.8,4.767]
[1767339504084,0.1815,3021.0,3019.9,0.14154695]
[1767339511381,0.13568455,3021.9,3020.1,0.76646819]
[1767339511782,0.13568455,3021.9,3020.2,4.32875641]
[1767339514885,0.13568455,3021.7,3020.2,4.32875641]
[1767339518092,0.13568455,3021.7,3020.2,4.33130186]
[1767339519793,0.13568455,3021.7,3020.3,4.78]
[1767339520094,0.13568455,3021.7,3020.4,4.2053928]
[1767339521090,0.3309,3021.8,3020.4,4.2053928]
[1767339521297,0.3309,3021.8,3020.9,0.76646819]
[1767339521498,0.32991218,3021.8,3021.0,4.784]
[1767339522799,0.0049604,3022.1,3021.0,4.784]
[1767339523098,0.14064495,3022.1,3021.1,4.36030928]
[1767339523300,0.14064495,3022.1,3021.0,4.784]
[1767339523599,0.14064495,3022.1,3020.6,0.76646819]
[1767339523793,0.14064495,3022.1,3020.7,4.787]
[1767339523995,0.14064495,3022.1,3020.7,9.18421279]
[1767339524701,0.14064495,3022.1,3020.8,4.788]
[1767339525201,0.14064495,3022.1,3020.9,4.29141488]
[1767339536111,0.14064495,3022.1,3021.0,4.804]
[1767339538315,0.14064495,3022.1,3020.6,0.16574]
[1767339538510,0.14064495,3022.1,3020.7,4.806]
[1767339538713,0.14064495,3022.1,3020.7,9.19026027]
[1767339540617,0.14064495,3022.1,3020.8,4.807]
[1767339541418,0.14064495,3022.1,3020.6,0.16574]
[1767339541619,0.14064495,3022.1,3020.7,3.883]
[1767339541918,0.14064495,3022.1,3020.7,8.27591306]
[1767339543119,0.14064495,3022.1,3020.7,4.39291306]
[1767339543318,0.14064495,3022.1,3020.8,4.807]
[1767339556331,0.0049604,3022.1,3020.8,4.807]
[1767339561337,0.0049604,3022.1,3020.9,4.3452099]
[1767339562534,0.0049604,3022.1,3021.1,0.76575236]
[1767339572245,0.0049604,3022.1,3020.8,4.807]
[1767339572442,0.0049604,3022.1,3021.1,0.76575236]
[1767339575441,0.0049604,3022.1,3021.4,0.76575236]
[1767339576143,0.00260021,3022.3,3021.4,0.76575236]
[1767339577050,0.0049604,3022.2,3021.5,0.0049604]
[1767339578353,0.0049604,3022.2,3021.6,0.76575236]
[1767339578553,0.00405298,3022.2,3021.6,0.76815402]
[1767339579058,0.00260021,3022.3,3021.6,0.76815402]
[1767339579254,0.00260021,3022.3,3021.6,0.00240166]
[1767339580155,0.00756061,3022.3,3021.6,0.00240166]
[1767339582862,0.00756061,3022.3,3021.6,0.76815402]
[1767339583451,0.14547673,3022.3,3021.6,0.00240166]
[1767339583655,0.13791612,3022.2,3021.6,0.00240166]
[1767339590156,0.13791612,3022.2,3021.1,4.794]
[1767339590458,0.13791612,3021.8,3020.7,4.794]
[1767339591161,0.13791612,3021.8,3020.7,4.79782329]
[1767339591358,0.13791612,3021.8,3020.9,0.0049604]
[1767339593160,0.13791612,3021.6,3020.9,0.0049604]
[1767339603369,0.76575236,3021.3,3019.6,0.16579]
[1767339603573,0.14219777,3021.2,3019.9,0.76575236]
[1767339603774,0.14219777,3021.2,3019.9,2.19135003]
[1767339604373,0.0049604,3020.9,3019.9,2.1938023]
[1767339605672,0.0049604,3020.9,3020.1,0.76575236]
[1767339615488,0.0049604,3020.9,3020.2,4.799]
[1767339616583,0.0049604,3020.9,3020.1,0.76575236]
[1767339616790,0.0049604,3020.9,3020.2,4.8]
[1767339617090,0.0049604,3020.9,3020.1,0.76575236]
[1767339617091,0.14715817,3020.9,3020.1,0.76575236]
[1767339617276,0.14715817,3020.9,3020.2,4.8]
[1767339618184,0.14715817,3020.9,3019.9,1.42804994]
[1767339618387,0.14715817,3020.9,3020.0,4.801]
[1767339621196,0.0049604,3020.9,3020.3,0.76575236]
[1767339621491,0.14219777,3021.8,3020.5,0.76575236]
[1767339621692,0.14219777,3021.8,3020.6,4.803]
[1767339621893,0.3309,3021.7,3020.6,4.803]
[1767339622096,0.14219777,3021.6,3020.6,4.803]
[1767339622498,0.14715817,3021.4,3020.8,0.0049604]
[1767339627397,0.3309,3021.7,3020.8,0.0049604]
[1767339628395,0.0049604,3021.6,3020.8,0.0049604]
[1767339632202,0.14836532,3021.6,3020.9,4.804]
[1767339635304,0.14836532,3021.6,3020.8,0.0049604]
[1767339635602,0.14836532,3021.6,3021.0,4.804]
[1767339642913,0.3309,3021.5,3020.8,0.0049604]
[1767339643107,0.47430492,3021.5,3020.8,0.0049604]
[1767339643415,0.47430492,3021.5,3020.9,4.804]
[1767339644812,0.47430492,3021.5,3020.1,1.83153154]
[1767339645010,0.14340492,3021.4,3020.1,1.83153154]
[1767339645312,0.14340492,3021.4,3020.2,4.803]
[1767339645718,0.14340492,3021.4,3020.1,1.83153154]
[1767339646014,0.14340492,3021.4,3020.4,0.0049604]
[1767339646410,0.14340492,3021.4,3020.5,4.803]
[1767339647215,0.14340492,3021.4,3020.4,0.0049604]
[1767339647417,0.14340492,3021.4,3020.5,4.803]
[1767339648618,0.14340492,3021.4,3020.4,0.0049604]
[1767339648919,0.14340492,3021.4,3020.5,4.803]
[1767339651320,0.90951781,3021.3,3020.3,4.802]
[1767339651618,0.14340492,3021.3,3020.3,4.802]
[1767339659625,0.14340492,3021.3,3020.1,1.83153154]
[1767339659827,0.14340492,3021.3,3020.4,4.802]
[1767339660628,0.13257472,3021.1,3019.9,0.00245227]
[1767339660818,0.13257472,3021.1,3020.0,4.802]
[1767339668337,0.13257472,3021.1,3019.9,0.00245227]
[1767339668538,0.13257472,3021.1,3020.0,4.82]
[1767339670038,0.13257472,3021.1,3019.9,0.00245227]
[1767339670232,0.13257472,3021.1,3020.0,4.821]
[1767339672340,0.331,3021.0,3020.0,4.821]
[1767339684547,0.76659873,3020.8,3020.0,4.821]
[1767339684748,0.331,3021.0,3020.0,4.821]
[1767339684941,0.76659873,3020.8,3020.0,4.821]
[1767339688255,1.09759873,3021.0,3020.0,4.821]
[1767339688858,0.331,3021.0,3020.0,4.821]
[1767339689054,1.09759873,3021.0,3020.0,4.821]
[1767339692360,0.76659873,3021.0,3020.0,4.821]
[1767339692758,0.14226321,3021.5,3020.0,4.821]
[1767339692957,0.76659873,3021.0,3020.0,4.821]
[1767339694857,0.331,3020.9,3020.0,4.821]
[1767339695854,0.331,3020.9,3019.9,0.00245227]
[1767339696159,0.331,3020.9,3020.0,4.891]
[1767339705562,0.331,3020.9,3020.1,4.916]
[1767339705968,0.76659873,3021.0,3020.1,4.916]
[1767339709074,0.76659873,3021.0,3019.9,0.00245227]
[1767339709263,0.76659873,3021.0,3020.0,4.926]
[1767339709464,0.331,3020.9,3020.0,4.926]
[1767339711072,1.09759873,3020.9,3020.0,4.926]
[1767339711273,1.09759873,3020.9,3019.9,0.00245227]
[1767339711473,1.09759873,3020.9,3020.0,4.931]
[1767339721773,1.09759873,3020.9,3019.9,0.00245227]
[1767339721980,1.09759873,3020.9,3020.0,4.958]
[1767339722471,0.331,3020.9,3020.0,4.958]
[1767339722668,0.331,3020.9,3020.1,4.961]
[1767339722669,0.76659873,3020.7,3020.1,4.961]
[1767339724180,0.76659873,3020.5,3019.9,0.00245227]
[1767339724376,0.331,3020.9,3019.2,0.13784457]
[1767339724377,0.76659873,3020.1,3019.2,0.13784457]
[1767339724579,0.0049604,3020.0,3019.3,4.966]
[1767339725480,0.00919495,3020.0,3019.3,4.96868929]
[1767339725687,0.76659873,3020.6,3019.3,5.73528802]
[1767339726375,0.76659873,3020.6,3019.3,0.00268929]
[1767339726682,0.0049604,3020.3,3019.6,0.0049604]
[1767339728083,0.3311,3020.2,3019.6,0.0049604]
[1767339729386,0.3311,3020.2,3019.6,4.9719604]
[1767339734687,0.3311,3020.2,3019.6,0.0049604]
[1767339744892,0.3311,3020.2,3019.5,4.7230339]
[1767339745193,0.159376,3020.3,3019.5,4.7230339]
[1767339748092,0.159376,3020.3,3019.3,0.00268929]
[1767339748496,0.13121749,3020.1,3019.3,0.00268929]
[1767339750794,0.13121749,3020.1,3018.7,4.966]
[1767339751692,0.13121749,3020.1,3018.7,4.97024555]
[1767339751893,0.13121749,3020.1,3018.7,0.00424555]
[1767339752094,0.13121749,3020.1,3018.8,4.965]
[1767339753393,0.13121749,3020.1,3018.7,0.00424555]
[1767339753595,0.13121749,3020.1,3018.7,4.96924555]
[1767339754901,0.13121749,3020.1,3018.7,0.00424555]
[1767339760809,0.29697749,3020.1,3018.7,0.00424555]
[1767339761209,0.13121749,3020.0,3018.7,0.00424555]
[1767339762511,0.13121749,3020.0,3018.7,0.7711499]
[1767339767911,0.16576,3020.1,3018.7,0.7711499]
[1767339769416,0.16576,3020.1,3018.7,0.90508562]
[1767339771815,0.16576,3020.1,3018.7,0.13818127]
[1767339772014,0.16576,3020.1,3018.7,0.90508562]
[1767339772713,0.3311,3020.2,3019.1,0.76690435]
[1767339774522,0.0049604,3020.3,3019.1,0.76690435]
[1767339776221,0.16573,3020.8,3019.1,0.76690435]
[1767339776222,0.16573,3020.8,3019.5,0.76690435]
[1767339776418,0.16573,3020.8,3019.2,0.13323581]
[1767339776718,0.14210257,3020.6,3019.2,0.13323581]
[1767339776919,0.14210257,3020.6,3018.9,0.76690435]
[1767339777219,0.14210257,3020.6,3019.0,4.956]
[1767339777521,0.0049604,3020.1,3019.4,0.0049604]
[1767339778119,0.3311,3020.0,3019.4,0.0049604]
[1767339795141,0.0049604,3020.1,3019.4,0.0049604]
[1767339797643,0.14359051,3020.1,3019.4,0.0049604]
[1767339799142,0.3311,3020.0,3019.4,0.0049604]
[1767339811158,0.14359051,3020.1,3019.4,0.0049604]
[1767339814562,0.3311,3020.0,3019.4,0.0049604]
[1767339816162,0.47824316,3020.0,3019.4,0.0049604]
[1767339821961,0.3311,3020.0,3019.4,0.0049604]
[1767339823465,0.47824316,3020.0,3019.4,0.0049604]
[1767339830170,0.14352364,3020.0,3019.6,0.76692901]
[1767339830564,0.14352364,3020.0,3019.4,0.77188941]
[1767339830966,0.0049604,3020.1,3019.7,0.76692901]
[1767339831162,0.00347246,3020.6,3019.7,0.76692901]
[1767339831566,0.00347246,3020.6,3019.4,0.0049604]
[1767339831567,0.00347246,3020.6,3019.5,0.76692901]
[1767339831768,0.15061562,3020.6,3019.5,0.76692901]
[1767339832169,0.0049604,3020.4,3019.5,0.76692901]
[1767339833773,0.1331,3020.3,3019.5,0.76692901]
[1767339838480,0.1331,3020.3,3019.7,0.76692901]
[1767339840481,0.1331,3020.3,3019.5,0.76692901]
[1767339840987,0.1331,3020.3,3019.4,0.0049604]
[1767339841282,0.2799668,3020.3,3019.4,0.0049604]
[1767339841484,0.1468668,3020.2,3019.4,0.0049604]
[1767339848092,0.1468668,3020.2,3019.5,4.94]
[1767339851698,0.1468668,3020.0,3019.4,0.0049604]
[1767339856500,0.1468668,3019.8,3019.4,0.0049604]
[1767339859107,0.1332,3019.7,3019.4,0.0049604]
[1767339864209,0.2800668,3019.7,3019.4,0.0049604]
[1767339870411,0.2800668,3019.7,3019.1,4.951]
[1767339871414,0.2800668,3019.7,3019.1,4.9559604]
[1767339879418,0.2800668,3019.7,3019.1,0.0049604]
[1767339879615,0.14276211,3019.6,3019.1,0.0049604]
[1767339880418,0.14276211,3019.6,3018.3,10.28142934]
[1767339880419,0.1332,3019.7,3018.0,0.14657509]
[1767339881424,0.1332,3019.7,3018.2,0.14657509]
[1767339883215,0.1332,3019.7,3018.3,4.982]
[1767339883920,0.1332,3019.7,3018.4,0.14657509]
[1767339886129,0.1157712,3020.0,3018.4,0.14657509]
[1767339887327,0.1157712,3020.0,3018.3,4.982]
[1767339887630,0.87826761,3019.7,3018.3,4.982]
[1767339888932,0.87826761,3019.7,3018.1,0.14657509]
[1767339889118,0.87826761,3019.7,3018.1,5.12657509]
[1767339889319,0.3311,3019.6,3018.1,5.12657509]
[1767339892433,0.3311,3019.6,3018.2,0.14657509]
[1767339893536,0.3311,3019.6,3018.4,0.14657509]
[1767339897031,0.3311,3019.6,3018.6,0.13513767]
[1767339900634,0.0049604,3020.4,3018.8,0.13513767]
[1767339900831,0.0049604,3020.4,3019.0,0.13513767]
[1767339901942,0.0049604,3020.4,3019.0,5.11413767]
[1767339903041,0.0049604,3020.4,3019.0,0.13513767]
[1767339903242,0.1332,3020.3,3019.0,5.11413767]
[1767339906041,0.1332,3020.3,3019.1,0.13513767]
[1767339926555,0.76700197,3020.0,3019.1,0.13513767]
[1767339926755,0.1332,3020.3,3019.6,0.76700197]
[1767339926956,0.89524303,3020.3,3019.5,0.14214716]
[1767339927456,0.12824106,3020.3,3019.5,0.14214716]
[1767339928245,0.0049604,3020.4,3019.5,0.14214716]
[1767339930049,0.0049604,3020.4,3018.6,6.36357828]
[1767339930050,0.0049604,3020.4,3019.7,0.14214716]
[1767339930449,0.16569,3021.5,3019.7,0.14214716]
[1767339930450,0.76700197,3020.8,3019.7,0.14214716]
[1767339931359,0.0049687,3020.6,3019.9,0.14711586]
[1767339936263,0.1282,3020.7,3019.9,0.14711586]
[1767339937272,0.0049687,3020.6,3019.9,0.14711586]
[1767339937859,0.0035271,3020.8,3019.9,0.14711586]
[1767339938864,0.0049687,3020.7,3019.9,0.14711586]
[1767339941969,0.76700197,3020.5,3019.9,0.0049687]
[1767339944469,0.77197067,3020.7,3019.9,0.0049687]
[1767339945066,0.0049687,3020.7,3019.9,0.14711586]
[1767339957374,0.76700197,3020.5,3019.9,0.0049687]
[1767339960087,0.76700197,3020.1,3019.1,5.0996254]
[1767339960489,0.14940055,3020.7,3019.1,5.0996254]
[1767339960688,0.76700197,3020.2,3019.1,5.0996254]
[1767339961088,0.76700197,3020.2,3019.3,0.0049687]
[1767339961289,0.76700197,3020.0,3019.3,0.0049687]
[1767339961485,0.14443185,3020.4,3019.3,0.0049687]
[1767339961686,0.76700197,3020.0,3019.3,0.0049687]
[1767339962493,0.14443185,3020.4,3018.7,0.1446254]
[1767339962494,0.76700197,3019.6,3018.7,0.1446254]
[1767339962684,0.76700197,3019.8,3018.8,5.0986254]
[1767339962885,0.3311,3019.9,3018.9,0.1446254]
[1767339963591,0.3311,3019.9,3019.1,0.0049687]
[1767339978900,0.76700197,3020.1,3019.1,0.0049687]
[1767339979293,0.14443185,3020.0,3018.8,0.76700197]
[1767339979498,0.14443185,3020.0,3018.0,0.14798668]
[1767339979499,6.76700197,3020.0,3018.0,0.14798668]
[1767339979695,0.76700197,3019.3,3018.1,0.1446254]
[1767339979891,0.76700197,3019.5,3018.3,0.1446254]
[1767339980289,0.76700197,3019.5,3018.4,0.1446254]
[1767339980494,0.0049687,3019.2,3018.4,0.1446254]
[1767339981503,0.3312,3019.1,3018.4,0.1446254]
[1767339982498,0.76700197,3020.1,3018.9,0.1446254]
[1767339982703,0.76700197,3019.9,3018.9,0.1446254]
[1767339983504,0.0049687,3019.7,3019.1,0.0049687]
[1767339986007,0.3311,3019.6,3019.1,0.0049687]
[1767340006219,0.0049687,3019.7,3018.9,0.1446254]
[1767340008416,0.0049687,3019.7,3018.1,0.13682159]
[1767340008615,0.77206698,3019.7,3018.1,0.13682159]
[1767340010116,0.3311,3019.6,3018.1,0.13682159]
[1767340012421,0.3311,3019.6,3018.3,0.13682159]
[1767340021627,0.76709828,3019.4,3018.3,0.13682159]
[1767340023135,0.76709828,3019.4,3018.0,0.00336128]
[1767340023433,0.16581,3019.3,3018.0,0.13916646]
[1767340030537,0.76709828,3019.2,3018.0,0.13916646]
[1767340030741,0.76709828,3019.2,3018.0,0.00336128]
[1767340032434,0.76709828,3019.2,3018.0,0.13916646]
[1767340034141,0.16581,3019.3,3018.0,0.13916646]
[1767340039746,0.3312,3019.2,3018.0,0.13916646]
[1767340039947,0.49701,3019.2,3018.0,0.13916646]
[1767340048464,0.76757792,3018.9,3018.0,0.13916646]
[1767340049965,0.49701,3019.2,3018.0,0.13916646]
[1767340050166,0.76757792,3018.9,3018.0,0.13916646]
[1767340055372,0.76757792,3018.7,3018.0,0.13916646]
[1767340059573,0.16583,3019.0,3018.0,0.13916646]
[1767340059775,0.76757792,3018.7,3018.0,0.13916646]
[1767340060375,0.16583,3019.0,3018.0,0.13916646]
[1767340060573,0.76757792,3018.8,3018.0,0.13916646]
[1767340063476,0.3312,3018.7,3018.0,0.13916646]
[1767340068376,0.76757792,3018.4,3017.9,0.37168693]
[1767340068974,0.76757792,3018.4,3017.9,0.50942708]
[1767340069483,0.77120705,3018.4,3017.9,0.5123821]
[1767340070578,0.00362913,3018.4,3017.9,0.5123821]
[1767340071781,0.00362913,3018.4,3018.0,0.13774015]
[1767340077473,0.77120705,3018.4,3017.4,0.29952309]
[1767340078483,0.77120705,3018.4,3017.4,0.30375415]
[1767340079376,0.77120705,3018.4,3017.4,0.43892815]
[1767340079788,0.00362913,3018.4,3017.5,0.135174]
[1767340081489,0.3313,3018.3,3017.5,0.135174]
[1767340094296,0.3313,3018.3,3017.6,0.135174]
[1767340099204,0.3313,3018.3,3017.5,4.983]
[1767340100609,0.00362913,3018.4,3017.5,4.983]
[1767340103510,0.3313,3018.3,3017.5,4.983]
[1767340105111,0.3313,3018.3,3017.4,0.30375415]
[1767340105309,0.0049687,3018.2,3017.4,0.30375415]
[1767340105705,0.77254662,3018.2,3017.4,0.30375415]
[1767340108517,0.0049687,3018.2,3017.4,0.30375415]
[1767340110519,0.0049687,3018.2,3017.4,0.43746763]
[1767340110715,0.0049687,3018.2,3017.5,0.13371348]
[1767340118828,0.0049687,3018.2,3017.4,0.00423106]
[1767340124828,0.0049687,3018.2,3017.4,0.13794454]
[1767340125228,0.3313,3018.3,3017.4,0.13794454]
[1767340126228,0.0049687,3018.2,3017.6,0.13371348]
[1767340127926,0.00362913,3018.4,3017.6,0.13371348]
[1767340129032,0.0049687,3018.3,3017.6,0.13371348]
[1767340130332,0.3313,3018.2,3017.7,5.20071348]
[1767340130635,0.3313,3018.2,3017.8,0.13371348]
[1767340141244,0.0049687,3018.3,3017.8,0.13371348]
[1767340144548,0.3313,3018.2,3017.8,0.13371348]
[1767340145437,0.3313,3018.2,3017.9,5.098]
[1767340146146,0.3313,3018.2,3017.9,5.24350514]
[1767340146650,0.0049687,3018.3,3017.9,5.098]
[1767340147149,0.0049687,3018.3,3018.0,5.097]
[1767340148450,0.0049687,3018.3,3017.9,5.097]
[1767340149862,0.2657,3018.2,3017.9,5.097]
[1767340154764,0.11847442,3018.2,3017.9,5.097]
[1767340155663,0.0049687,3018.3,3017.9,5.097]
[1767340158968,0.15177308,3018.3,3017.7,5.095]
[1767340167077,0.15177308,3018.3,3017.5,0.0049687]
[1767340167376,0.15177308,3018.3,3017.6,5.093]
[1767340168178,0.0049687,3018.3,3017.6,5.093]
[1767340174582,0.90797812,3018.3,3017.6,5.093]
[1767340174977,0.14025862,3018.3,3017.6,5.093]
[1767340175178,0.0049687,3018.3,3017.6,5.093]
[1767340195711,0.0049687,3018.3,3017.5,0.0049687]
[1767340195905,0.0049687,3018.3,3017.6,5.09]
[1767340202920,0.0049687,3018.3,3017.5,0.0049687]
[1767340203120,0.0049687,3018.3,3017.6,5.09]
[1767340208122,0.0049687,3018.3,3017.7,5.089]
[1767340208528,0.7726882,3018.3,3017.7,5.089]
[1767340209428,0.0049687,3018.3,3017.7,5.089]
[1767340211629,0.0049687,3018.3,3017.5,0.0049687]
[1767340211831,0.0049687,3018.3,3017.6,5.088]
[1767340215237,0.0049687,3018.3,3017.5,0.0049687]
[1767340215436,0.0049687,3018.3,3017.6,5.088]
[1767340223747,0.0049687,3018.3,3017.5,0.0049687]
[1767340223948,0.0049687,3018.3,3017.6,5.087]
[1767340224246,0.0049687,3018.3,3017.5,5.0919687]
[1767340224247,0.7677195,3018.2,3017.5,5.0919687]